fUST/lending_fUST_20240111
["ID","MTS","AMOUNT","RATE_DAILY","PERIOD"]
[311137679,1704929444062,-500.0,0.00030136,2]
[311137681,1704929444072,-5000.0,0.00030137,2]
[311137683,1704929444083,-5000.0,0.00030137,2]
[311137685,1704929444094,-4237.89806551,0.00030137,2]
[311137687,1704929444104,-150.26820741,0.00030191,7]
[311137689,1704929444114,-680.95063251,0.000302,3]
[311137691,1704929444124,-151.18004956,0.00030243,2]
[311137693,1704929444134,-550.98543534,0.0003041,2]
[311137695,1704929444144,-500.0,0.0003041,2]
[311137697,1704929444154,-500.0,0.0003041,2]
[311137699,1704929444166,-500.0,0.0003041,2]
[311137701,1704929444176,-500.0,0.0003041,2]
[311137703,1704929444186,-500.0,0.0003041,2]
[311137705,1704929444195,-500.0,0.0003041,2]
[311137707,1704929444204,-500.0,0.0003041,2]
[311137709,1704929444214,-500.0,0.0003041,2]
[311137711,1704929444223,-500.0,0.0003041,2]
[311137713,1704929444232,-500.0,0.0003041,2]
[311137715,1704929444242,-508.5740827,0.0003041,2]
[311137717,1704929444251,-500.0,0.0003041,2]
[311137719,1704929444262,-500.0,0.0003041,2]
[311137721,1704929444271,-255.49757785,0.0003041,2]
[311137723,1704929444280,-500.0,0.0003041,2]
[311137725,1704929444289,-500.0,0.0003041,2]
[311137727,1704929444305,-522.58691347,0.0003041,2]
[311137729,1704929444314,-500.0,0.0003041,2]
[311137731,1704929444324,-500.0,0.0003041,2]
[311137733,1704929444333,-500.0,0.0003041,2]
[311137735,1704929444343,-500.0,0.0003041,2]
[311137737,1704929444352,-500.0,0.0003041,2]
[311137739,1704929444361,-500.0,0.0003041,2]
[311137741,1704929444371,-500.0,0.0003041,2]
[311137743,1704929444380,-600.04283683,0.0003041,2]
[311137745,1704929444390,-500.0,0.0003041,2]
[311137747,1704929444399,-500.0,0.0003041,2]
[311137749,1704929444409,-500.0,0.0003041,2]
[311137751,1704929444419,-500.0,0.0003041,2]
[311137753,1704929444428,-500.0,0.0003041,2]
[311137754,1704929444438,-500.0,0.0003041,2]
[311137756,1704929444448,-500.0,0.0003041,2]
[311137758,1704929444463,-154.29785145,0.0003041,2]
[311137760,1704929444473,-500.0,0.0003041,2]
[311137762,1704929444483,-521.91,0.0003041,2]
[311137765,1704929444493,-500.0,0.0003041,2]
[311137767,1704929444503,-500.0,0.0003041,2]
[311137769,1704929444513,-500.0,0.0003041,2]
[311137771,1704929444522,-500.0,0.0003041,2]
[311137773,1704929444532,-500.0,0.0003041,2]
[311137775,1704929444541,-500.0,0.0003041,2]
[311137776,1704929444555,-500.0,0.0003041,2]
[311137778,1704929444565,-500.0,0.0003041,2]
[311137780,1704929444574,-500.0,0.0003041,2]
[311137783,1704929444584,-500.0,0.0003041,2]
[311137785,1704929444593,-500.0,0.0003041,2]
[311137786,1704929444603,-500.0,0.0003041,2]
[311137788,1704929444617,-500.0,0.0003041,2]
[311137790,1704929444627,-500.0,0.0003041,2]
[311137792,1704929444637,-500.0,0.0003041,2]
[311137794,1704929444647,-182.34820388,0.0003041,2]
[311137796,1704929444657,-500.05,0.0003041,2]
[311137798,1704929444668,-505.02763362,0.0003041,2]
[311137800,1704929444679,-500.0,0.0003041,2]
[311137802,1704929444689,-495.80146423,0.0003041,2]
[311137804,1704929444700,-500.0,0.0003041,2]
[311137806,1704929444710,-500.0,0.0003041,2]
[311137808,1704929444720,-500.0,0.0003041,2]
[311137810,1704929444729,-500.0,0.0003041,2]
[311137812,1704929444740,-155.7377901,0.0003041,2]
[311137814,1704929444750,-185.024086,0.0003041,2]
[311137817,1704929444760,-160.41368838,0.0003041,2]
[311137819,1704929444771,-300.30861175,0.0003041,2]
[311137821,1704929444781,-540.95,0.0003041,2]
[311137822,1704929444791,-500.0,0.0003041,2]
[311137825,1704929444807,-500.0,0.0003041,2]
[311137827,1704929444819,-500.0,0.0003041,2]
[311137829,1704929444830,-500.0,0.0003041,2]
[311137830,1704929444839,-500.0,0.0003041,2]
[311137832,1704929444849,-500.0,0.0003041,2]
[311137834,1704929444859,-647.69221958,0.0003041,2]
[311137836,1704929444869,-500.0,0.0003041,2]
[311137838,1704929444879,-500.0,0.0003041,2]
[311137840,1704929444889,-500.0,0.0003041,2]
[311137842,1704929444899,-500.0,0.0003041,2]
[311137844,1704929444909,-500.0,0.0003041,2]
[311137846,1704929444919,-1570.42,0.0003041,2]
[311137848,1704929444929,-500.0,0.0003041,2]
[311137850,1704929444938,-341.18024772,0.0003041,2]
[311137852,1704929444948,-500.0,0.0003041,2]
[311137854,1704929444957,-552.58437881,0.0003041,2]
[311137856,1704929444966,-500.0,0.0003041,2]
[311137858,1704929444975,-500.0,0.0003041,2]
[311137860,1704929444984,-500.0,0.0003041,2]
[311137862,1704929444993,-500.0,0.0003041,2]
[311137864,1704929445002,-500.0,0.0003041,2]
[311137866,1704929445011,-500.0,0.0003041,2]
[311137868,1704929445020,-500.0,0.0003041,2]
[311137870,1704929445029,-509.75,0.0003041,2]
[311137872,1704929445038,-500.0,0.0003041,2]
[311137874,1704929445051,-500.0,0.0003041,2]
[311137885,1704929445142,-500.0,0.0003041,2]
[311137887,1704929445151,-500.0,0.0003041,2]
[311137889,1704929445160,-500.0,0.0003041,2]
[311137891,1704929445169,-500.0,0.0003041,2]
[311137893,1704929445179,-500.0,0.0003041,2]
[311137895,1704929445189,-500.0,0.0003041,2]
[311137897,1704929445198,-500.0,0.0003041,2]
[311137899,1704929445207,-280.0,0.0003041,2]
[311137901,1704929445216,-500.0,0.0003041,2]
[311137903,1704929445225,-500.0,0.0003041,2]
[311137905,1704929445234,-533.52,0.0003041,2]
[311137907,1704929445243,-500.0,0.0003041,2]
[311137909,1704929445252,-500.0,0.0003041,2]
[311137911,1704929445261,-500.0,0.0003041,2]
[311137913,1704929445271,-500.0,0.0003041,2]
[311137915,1704929445280,-500.0,0.0003041,2]
[311137917,1704929445289,-500.0,0.0003041,2]
[311137919,1704929445304,-500.0,0.0003041,2]
[311137921,1704929445313,-339.41098139,0.0003041,2]
[311137923,1704929445322,-500.0,0.0003041,2]
[311137925,1704929445332,-500.0,0.0003041,2]
[311137927,1704929445341,-500.0,0.0003041,2]
[311137929,1704929445350,-644.26,0.0003041,2]
[311137931,1704929445359,-500.0,0.0003041,2]
[311137934,1704929445369,-500.0,0.0003041,2]
[311137936,1704929445378,-500.0,0.0003041,2]
[311137939,1704929445388,-500.0,0.0003041,2]
[311137941,1704929445398,-500.0,0.0003041,2]
[311137943,1704929445406,-500.0,0.0003041,2]
[311137945,1704929445415,-804.33,0.0003041,2]
[311137947,1704929445424,-500.0,0.0003041,2]
[311137949,1704929445433,-500.0,0.0003041,2]
[311137951,1704929445442,-500.0,0.0003041,2]
[311137953,1704929445451,-500.0,0.0003041,2]
[311137958,1704929445460,-500.0,0.0003041,2]
[311137961,1704929445468,-500.0,0.0003041,2]
[311137966,1704929445479,-506.72737826,0.0003041,2]
[311137969,1704929445488,-500.0,0.0003041,2]
[311137972,1704929445497,-500.0,0.0003041,2]
[311137974,1704929445506,-717.82,0.0003041,2]
[311137975,1704929445515,-500.0,0.0003041,2]
[311137978,1704929445523,-500.0,0.0003041,2]
[311137980,1704929445532,-619.60504087,0.0003041,2]
[311137982,1704929445541,-500.0,0.0003041,2]
[311137985,1704929445556,-507.8,0.0003041,2]
[311137986,1704929445564,-500.0,0.0003041,2]
[311137989,1704929445573,-173.83232581,0.0003041,2]
[311137992,1704929445582,-500.0,0.0003041,2]
[311137995,1704929445591,-12187.55,0.0003041,2]
[311137998,1704929445600,-2647.91,0.0003041,2]
[311138000,1704929445609,-896.88,0.0003041,2]
[311138002,1704929445618,-500.0,0.0003041,2]
[311138004,1704929445628,-245.8717065,0.0003041,2]
[311138007,1704929445638,-500.0,0.0003041,2]
[311138010,1704929445648,-500.0,0.0003041,2]
[311138013,1704929445657,-669.8,0.0003041,2]
[311138015,1704929445668,-500.0,0.0003041,2]
[311138018,1704929445678,-500.0,0.0003041,2]
[311138021,1704929445688,-500.0,0.0003041,2]
[311138024,1704929445698,-500.0,0.0003041,2]
[311138026,1704929445707,-500.0,0.0003041,2]
[311138030,1704929445717,-500.0,0.0003041,2]
[311138031,1704929445727,-648.63,0.0003041,2]
[311138034,1704929445737,-500.0,0.0003041,2]
[311138036,1704929445747,-2929.19,0.0003041,2]
[311138038,1704929445757,-500.0,0.0003041,2]
[311138039,1704929445767,-500.0,0.0003041,2]
[311138042,1704929445777,-500.0,0.0003041,2]
[311138043,1704929445787,-500.0,0.0003041,2]
[311138046,1704929445802,-500.0,0.0003041,2]
[311138047,1704929445813,-1089.98,0.0003041,2]
[311138049,1704929445828,-158.5365866,0.0003041,5]
[311138050,1704929445839,-5377.64,0.0003041,2]
[311138051,1704929445849,-500.0,0.0003041,2]
[311138052,1704929445860,-9420.58,0.0003041,2]
[311138053,1704929445871,-500.0,0.0003041,2]
[311138054,1704929445881,-500.0,0.0003041,2]
[311138055,1704929445891,-500.0,0.0003041,2]
[311138056,1704929445904,-500.0,0.0003041,2]
[311138057,1704929445914,-2764.08,0.0003041,2]
[311138058,1704929445923,-500.0,0.0003041,2]
[311138059,1704929445934,-500.0,0.0003041,2]
[311138060,1704929445944,-500.0,0.0003041,2]
[311138061,1704929445954,-500.0,0.0003041,2]
[311138062,1704929445965,-1892.95,0.0003041,2]
[311138063,1704929445975,-500.0,0.0003041,2]
[311138065,1704929445986,-500.0,0.0003041,2]
[311138067,1704929445996,-500.0,0.0003041,2]
[311138069,1704929446006,-500.0,0.0003041,2]
[311138071,1704929446016,-500.0,0.0003041,2]
[311138073,1704929446026,-500.0,0.0003041,2]
[311138075,1704929446036,-737.13,0.0003041,2]
[311138077,1704929446049,-527.97,0.0003041,2]
[311138079,1704929446058,-500.0,0.0003041,2]
[311138081,1704929446068,-500.0,0.0003041,2]
[311138083,1704929446078,-614.53629974,0.0003041,2]
[311138085,1704929446088,-500.0,0.0003041,2]
[311138086,1704929446097,-909.45,0.0003041,2]
[311138089,1704929446106,-500.0,0.0003041,2]
[311138091,1704929446116,-500.0,0.0003041,2]
[311138093,1704929446125,-1367.63,0.0003041,2]
[311138095,1704929446136,-500.0,0.0003041,2]
[311138097,1704929446145,-500.0,0.0003041,2]
[311138099,1704929446157,-500.0,0.0003041,2]
[311138101,1704929446167,-503.4346223,0.0003041,2]
[311138102,1704929446177,-500.0,0.0003041,2]
[311138104,1704929446186,-762.58,0.0003041,2]
[311138107,1704929446196,-500.0,0.0003041,2]
[311138109,1704929446208,-1913.4,0.0003041,2]
[311138111,1704929446217,-1507.86,0.0003041,2]
[311138113,1704929446226,-500.0,0.0003041,2]
[311138115,1704929446236,-500.0,0.0003041,2]
[311138117,1704929446245,-500.0,0.0003041,2]
[311138119,1704929446254,-182.389996,0.00030449,2]
[311138121,1704929446263,-182.389996,0.00030449,2]
[311138123,1704929446272,-410.37749,0.00030449,2]
[311138124,1704929446281,-1500.0,0.000305,2]
[311138126,1704929446290,-620.00002636,0.00030561,2]
[311138129,1704929446308,-620.01161309,0.00030561,2]
[311138131,1704929446318,-152.788532,0.00030574,2]
[311138133,1704929446328,-151.0,0.00030609,2]
[311138134,1704929446337,-200.0,0.00030626,15]
[311138136,1704929446347,-152.35064136,0.00030648,7]
[311138138,1704929446359,-150.26820741,0.00030649,7]
[311138140,1704929446369,-500.0,0.00030684,2]
[311138142,1704929446380,-500.0,0.00030684,2]
[311138144,1704929446389,-500.0,0.00030684,2]
[311138146,1704929446399,-500.0,0.00030684,2]
[311138149,1704929446412,-500.0,0.00030684,2]
[311138150,1704929446421,-500.0,0.00030684,2]
[311138152,1704929446431,-500.0,0.00030684,2]
[311138154,1704929446441,-500.0,0.00030684,2]
[311138156,1704929446451,-500.0,0.00030684,2]
[311138158,1704929446461,-500.0,0.00030684,2]
[311138160,1704929446471,-500.0,0.00030684,2]
[311138162,1704929446481,-500.0,0.00030684,2]
[311138164,1704929446490,-500.0,0.00030684,2]
[311138166,1704929446499,-500.0,0.00030684,2]
[311138168,1704929446509,-500.0,0.00030684,2]
[311138170,1704929446518,-500.0,0.00030684,2]
[311138172,1704929446528,-500.0,0.00030684,2]
[311138174,1704929446538,-500.0,0.00030684,2]
[311138176,1704929446552,-500.0,0.00030684,2]
[311138178,1704929446563,-500.0,0.00030684,2]
[311138180,1704929446573,-500.0,0.00030684,2]
[311138182,1704929446583,-500.0,0.00030684,2]
[311138184,1704929446594,-500.0,0.00030684,2]
[311138186,1704929446608,-521.91,0.00030684,2]
[311138188,1704929446618,-500.0,0.00030684,2]
[311138190,1704929446627,-500.0,0.00030684,2]
[311138192,1704929446637,-500.0,0.00030684,2]
[311138194,1704929446646,-500.0,0.00030684,2]
[311138196,1704929446655,-549.89327927,0.00030684,2]
[311138198,1704929446664,-501.78053641,0.00030684,2]
[311138200,1704929446674,-500.0,0.00030684,2]
[311138202,1704929446684,-190.54760044,0.00030684,2]
[311138204,1704929446694,-500.0,0.00030684,2]
[311138206,1704929446705,-500.0,0.00030684,2]
[311138208,1704929446715,-500.0,0.00030684,2]
[311138210,1704929446725,-500.0,0.00030684,2]
[311138212,1704929446735,-500.0,0.00030684,2]
[311138214,1704929446745,-500.0,0.00030684,2]
[311138216,1704929446755,-500.0,0.00030684,2]
[311138218,1704929446765,-500.05,0.00030684,2]
[311138220,1704929446775,-500.0,0.00030684,2]
[311138222,1704929446785,-500.0,0.00030684,2]
[311138224,1704929446798,-500.0,0.00030684,2]
[311138225,1704929446809,-500.0,0.00030684,2]
[311138228,1704929446821,-278.63115489,0.00030684,2]
[311138229,1704929446833,-540.95,0.00030684,2]
[311138232,1704929446843,-500.0,0.00030684,2]
[311138234,1704929446852,-500.0,0.00030684,2]
[311138235,1704929446862,-500.0,0.00030684,2]
[311138237,1704929446872,-442.00248067,0.00030684,2]
[311138239,1704929446881,-500.0,0.00030684,2]
[311138241,1704929446891,-500.0,0.00030684,2]
[311138244,1704929446902,-500.0,0.00030684,2]
[311138246,1704929446912,-500.0,0.00030684,2]
[311138248,1704929446922,-500.0,0.00030684,2]
[311138250,1704929446931,-500.0,0.00030684,2]
[311138251,1704929446941,-1570.42,0.00030684,2]
[311138254,1704929446951,-500.0,0.00030684,2]
[311138256,1704929446961,-500.0,0.00030684,2]
[311138258,1704929446972,-500.0,0.00030684,2]
[311138259,1704929446982,-500.0,0.00030684,2]
[311138262,1704929446991,-500.0,0.00030684,2]
[311138263,1704929447001,-500.0,0.00030684,2]
[311138265,1704929447010,-500.0,0.00030684,2]
[311138267,1704929447020,-500.0,0.00030684,2]
[311138269,1704929447029,-509.75,0.00030684,2]
[311138271,1704929447038,-500.0,0.00030684,2]
[311138273,1704929447052,-500.0,0.00030684,2]
[311138275,1704929447061,-500.0,0.00030684,2]
[311138277,1704929447070,-500.0,0.00030684,2]
[311138279,1704929447079,-500.0,0.00030684,2]
[311138281,1704929447088,-500.0,0.00030684,2]
[311138283,1704929447097,-500.0,0.00030684,2]
[311138285,1704929447106,-500.0,0.00030684,2]
[311138287,1704929447117,-500.0,0.00030684,2]
[311138289,1704929447126,-500.0,0.00030684,2]
[311138291,1704929447136,-500.0,0.00030684,2]
[311138293,1704929447145,-533.52,0.00030684,2]
[311138295,1704929447154,-500.0,0.00030684,2]
[311138297,1704929447163,-500.0,0.00030684,2]
[311138299,1704929447173,-500.0,0.00030684,2]
[311138301,1704929447183,-509.66374752,0.00030684,2]
[311138303,1704929447194,-500.0,0.00030684,2]
[311138305,1704929447204,-261.31725335,0.00030684,2]
[311138307,1704929447214,-600.638198,0.00030684,2]
[311138309,1704929447224,-500.0,0.00030684,2]
[311138320,1704929447320,-500.0,0.00030684,2]
[311138322,1704929447332,-402.09100132,0.00030684,2]
[311138324,1704929447341,-644.26,0.00030684,2]
[311138326,1704929447349,-500.0,0.00030684,2]
[311138327,1704929447359,-500.0,0.00030684,2]
[311138329,1704929447369,-500.0,0.00030684,2]
[311138332,1704929447379,-500.0,0.00030684,2]
[311138333,1704929447389,-500.0,0.00030684,2]
[311138335,1704929447400,-500.0,0.00030684,2]
[311138338,1704929447418,-804.33,0.00030684,2]
[311138341,1704929447433,-500.0,0.00030684,2]
[311138343,1704929447444,-500.0,0.00030684,2]
[311138345,1704929447454,-500.0,0.00030684,2]
[311138347,1704929447465,-229.52217026,0.00030684,2]
[311138349,1704929447475,-500.0,0.00030684,2]
[311138351,1704929447485,-500.0,0.00030684,2]
[311138353,1704929447496,-500.0,0.00030684,2]
[311138355,1704929447506,-500.0,0.00030684,2]
[311138357,1704929447516,-717.82,0.00030684,2]
[311138359,1704929447526,-310.36155904,0.00030684,2]
[311138362,1704929447539,-500.0,0.00030684,2]
[311138364,1704929447552,-500.0,0.00030684,2]
[311138366,1704929447562,-507.8,0.00030684,2]
[311138368,1704929447572,-500.0,0.00030684,2]
[311138370,1704929447583,-500.0,0.00030684,2]
[311138372,1704929447594,-12187.55,0.00030684,2]
[311138374,1704929447605,-2647.91,0.00030684,2]
[311138376,1704929447615,-896.88,0.00030684,2]
[311138378,1704929447625,-500.0,0.00030684,2]
[311138380,1704929447635,-500.0,0.00030684,2]
[311138382,1704929447647,-500.0,0.00030684,2]
[311138384,1704929447657,-669.8,0.00030684,2]
[311138386,1704929447667,-500.0,0.00030684,2]
[311138388,1704929447678,-500.0,0.00030684,2]
[311138390,1704929447688,-500.0,0.00030684,2]
[311138392,1704929447698,-500.0,0.00030684,2]
[311138394,1704929447708,-500.0,0.00030684,2]
[311138396,1704929447718,-648.63,0.00030684,2]
[311138397,1704929447728,-2929.19,0.00030684,2]
[311138400,1704929447742,-500.0,0.00030684,2]
[311138402,1704929447753,-500.0,0.00030684,2]
[311138404,1704929447764,-500.0,0.00030684,2]
[311138406,1704929447775,-524.90821078,0.00030684,2]
[311138408,1704929447787,-500.0,0.00030684,2]
[311138410,1704929447801,-1089.98,0.00030684,2]
[311138412,1704929447812,-5377.64,0.00030684,2]
[311138414,1704929447826,-9420.58,0.00030684,2]
[311138416,1704929447839,-500.0,0.00030684,2]
[311138418,1704929447850,-500.0,0.00030684,2]
[311138420,1704929447860,-500.0,0.00030684,2]
[311138422,1704929447871,-500.0,0.00030684,2]
[311138424,1704929447881,-2764.08,0.00030684,2]
[311138426,1704929447891,-407.09468989,0.00030684,2]
[311138428,1704929447902,-500.0,0.00030684,2]
[311138430,1704929447912,-500.0,0.00030684,2]
[311138432,1704929447921,-500.0,0.00030684,2]
[311138434,1704929447930,-1892.95,0.00030684,2]
[311138436,1704929447940,-500.0,0.00030684,2]
[311138438,1704929447951,-500.0,0.00030684,2]
[311138440,1704929447961,-529.64213588,0.00030684,2]
[311138442,1704929447971,-500.0,0.00030684,2]
[311138444,1704929447981,-500.0,0.00030684,2]
[311138446,1704929447990,-737.13,0.00030684,2]
[311138448,1704929448001,-527.97,0.00030684,2]
[311138450,1704929448011,-161.74440105,0.00030684,2]
[311138452,1704929448020,-500.0,0.00030684,2]
[311138454,1704929448029,-500.0,0.00030684,2]
[311138456,1704929448040,-909.45,0.00030684,2]
[311138458,1704929448056,-501.18917969,0.00030684,2]
[311138460,1704929448066,-3.15020876,0.00030684,2]
[311138468,1704929448127,-413.03430595,0.00030684,2]
[311138480,1704929448236,-198.82408315,0.0001902,2]
[311138482,1704929448247,-1424.53512349,0.0002,5]
[311138485,1704929448257,-309.79865023,0.00027,2]
[311138487,1704929448266,-3766.68438747,0.00027397,3]
[311138542,1704929448928,-14786.55561253,0.00027397,3]
[311138543,1704929448938,-500.0,0.00030136,2]
[311138545,1704929448947,-571.23633064,0.00030136,2]
[311138547,1704929448957,-500.0,0.0003041,2]
[311138549,1704929448967,-116.21327612,0.00030684,2]
[311138551,1704929448977,-1367.63,0.00030684,2]
[311138553,1704929448988,-500.0,0.00030684,2]
[311138555,1704929448998,-500.0,0.00030684,2]
[311138557,1704929449009,-500.0,0.00030684,2]
[311138559,1704929449019,-762.58,0.00030684,2]
[311138561,1704929449030,-500.0,0.00030684,2]
[311138563,1704929449042,-1913.4,0.00030684,2]
[311138565,1704929449056,-1507.86,0.00030684,2]
[311138567,1704929449066,-500.0,0.00030684,2]
[311138569,1704929449076,-500.0,0.00030684,2]
[311138571,1704929449087,-501.35962442,0.00030684,2]
[311138573,1704929449096,-500.0,0.00030684,2]
[311138575,1704929449106,-9938.73437981,0.000308,7]
[311138577,1704929449115,-182.389996,0.00030825,2]
[311138579,1704929449125,-182.389996,0.00030825,2]
[311138581,1704929449135,-410.37749,0.00030825,2]
[311138583,1704929449145,-150.26820741,0.00030864,7]
[311138585,1704929449155,-232.92447422,0.00030887,2]
[311138587,1704929449167,-8721.27946918,0.00030887,2]
[311138589,1704929449177,-700.0,0.00030887,2]
[311138591,1704929449186,-150.26820741,0.00030897,7]
[311138593,1704929449195,-5000.0,0.00030898,2]
[311138595,1704929449205,-2000.0,0.000309,2]
[311138597,1704929449215,-480.95,0.00030905,2]
[311138599,1704929449225,-2000.0,0.0003091,2]
[311138601,1704929449234,-4999.99,0.00030911,2]
[311138603,1704929449244,-5000.0,0.00030912,2]
[311138605,1704929449253,-6563.990081,0.00030912,2]
[311138607,1704929449263,-6563.990081,0.00030912,2]
[311138609,1704929449278,-5000.0,0.00030918,2]
[311138611,1704929449288,-591.88,0.0003092,2]
[311138623,1704929449397,-2000.0,0.0003092,2]
[311138625,1704929449411,-5000.0,0.00030924,2]
[311138627,1704929449421,-478.63,0.00030929,2]
[311138629,1704929449432,-2000.0,0.0003093,2]
[311138631,1704929449442,-271.62818926,0.00030931,2]
[311138635,1704929449471,-4728.35181074,0.00030931,2]
[311138637,1704929449480,-5000.0,0.00030938,2]
[311138639,1704929449490,-2000.0,0.0003094,2]
[311138641,1704929449500,-150.26820741,0.0003094,7]
[311138643,1704929449510,-2000.0,0.0003095,2]
[311138645,1704929449520,-507.29,0.00030958,2]
[311138647,1704929449529,-500.0,0.00030958,2]
[311138649,1704929449538,-500.0,0.00030958,2]
[311138651,1704929449552,-500.0,0.00030958,2]
[311138653,1704929449562,-500.0,0.00030958,2]
[311138655,1704929449572,-500.0,0.00030958,2]
[311138657,1704929449584,-500.0,0.00030958,2]
[311138659,1704929449594,-256.03265185,0.00030958,2]
[311138661,1704929449604,-500.0,0.00030958,2]
[311138663,1704929449614,-500.0,0.00030958,2]
[311138665,1704929449624,-500.0,0.00030958,2]
[311138667,1704929449634,-500.0,0.00030958,2]
[311138669,1704929449643,-511.66889351,0.00030958,2]
[311138671,1704929449652,-521.91,0.00030958,2]
[311138673,1704929449661,-496.32997356,0.00030958,2]
[311138675,1704929449670,-500.0,0.00030958,2]
[311138677,1704929449680,-342.50915705,0.00030958,2]
[311138679,1704929449689,-500.0,0.00030958,2]
[311138681,1704929449698,-500.0,0.00030958,2]
[311138683,1704929449707,-500.0,0.00030958,2]
[311138684,1704929449716,-500.0,0.00030958,2]
[311138686,1704929449726,-500.0,0.00030958,2]
[311138688,1704929449735,-500.0,0.00030958,2]
[311138690,1704929449744,-500.0,0.00030958,2]
[311138692,1704929449753,-500.0,0.00030958,2]
[311138694,1704929449762,-500.05,0.00030958,2]
[311138696,1704929449772,-500.0,0.00030958,2]
[311138698,1704929449782,-500.0,0.00030958,2]
[311138700,1704929449791,-221.32032128,0.00030958,2]
[311138703,1704929449807,-500.0,0.00030958,2]
[311138705,1704929449816,-540.95,0.00030958,2]
[311138706,1704929449831,-500.0,0.00030958,2]
[311138708,1704929449840,-500.0,0.00030958,2]
[311138710,1704929449849,-500.0,0.00030958,2]
[311138712,1704929449859,-500.0,0.00030958,2]
[311138714,1704929449868,-500.0,0.00030958,2]
[311138717,1704929449877,-500.0,0.00030958,2]
[311138719,1704929449886,-500.0,0.00030958,2]
[311138721,1704929449896,-1570.42,0.00030958,2]
[311138723,1704929449905,-500.0,0.00030958,2]
[311138725,1704929449914,-500.0,0.00030958,2]
[311138727,1704929449925,-500.0,0.00030958,2]
[311138729,1704929449934,-500.0,0.00030958,2]
[311138730,1704929449943,-500.0,0.00030958,2]
[311138732,1704929449953,-500.0,0.00030958,2]
[311138735,1704929449963,-509.75,0.00030958,2]
[311138737,1704929449972,-500.0,0.00030958,2]
[311138739,1704929449982,-500.0,0.00030958,2]
[311138740,1704929449990,-500.0,0.00030958,2]
[311138742,1704929450000,-500.0,0.00030958,2]
[311138744,1704929450009,-500.0,0.00030958,2]
[311138746,1704929450018,-500.0,0.00030958,2]
[311138749,1704929450028,-500.0,0.00030958,2]
[311138751,1704929450038,-500.0,0.00030958,2]
[311138753,1704929450050,-500.0,0.00030958,2]
[311138755,1704929450059,-500.0,0.00030958,2]
[311138757,1704929450068,-500.0,0.00030958,2]
[311138759,1704929450077,-533.52,0.00030958,2]
[311138761,1704929450087,-500.0,0.00030958,2]
[311138763,1704929450097,-264.91785626,0.00030958,2]
[311138764,1704929450107,-500.0,0.00030958,2]
[311138766,1704929450116,-500.0,0.00030958,2]
[311138768,1704929450126,-500.0,0.00030958,2]
[311138771,1704929450136,-500.0,0.00030958,2]
[311138772,1704929450145,-644.26,0.00030958,2]
[311138774,1704929450154,-500.0,0.00030958,2]
[311138777,1704929450164,-500.0,0.00030958,2]
[311138779,1704929450173,-500.0,0.00030958,2]
[311138780,1704929450183,-500.0,0.00030958,2]
[311138783,1704929450193,-500.0,0.00030958,2]